fUSD/lending_fUSD_20241105
["ID","MTS","AMOUNT","RATE_DAILY","PERIOD"]
[341324502,1730799043055,-425.754786,0.00016,2]
[341324523,1730799045657,-39313.47907406,0.00016,2]
[341324524,1730799045711,-12736.4726722,0.00016,2]
[341324525,1730799045771,-431.885,0.00016,2]
[341324526,1730799045904,-24312.95553371,0.00016,2]
[341324527,1730799045914,-200.0,0.0001634,2]
[341324528,1730799045924,-151.28463328,0.00016438,2]
[341324529,1730799045934,-205.31093859,0.00016685,2]
[341324530,1730799045943,-6310.18039077,0.00018,2]
[341324531,1730799046129,-283.16378312,0.00018,2]
[341324532,1730799046149,-1686.82822649,0.000181,2]
[341324533,1730799046158,-205.31093854,0.00018168,2]
[341324534,1730799046167,-1891.0,0.000186,2]
[341324535,1730799046178,-331.0,0.000187,2]
[341324536,1730799046191,-23698.55011249,0.0001892,2]
[341324537,1730799046202,-205.31093854,0.00019652,2]
[341324538,1730799046212,-20781.65017722,0.000199,2]
[341324539,1730799046223,-296.28080829,0.0002,2]
[341324540,1730799046233,-3806.01447619,0.0002,2]
[341324541,1730799046243,-5454.0,0.0002,2]
[341324542,1730799046255,-22999.82067036,0.0002,2]
[341324543,1730799046265,-6322.13479752,0.0002,2]
[341324544,1730799046278,-3414.84799108,0.0002,2]
[341324545,1730799046303,-3473.85758611,0.0002,2]
[341324546,1730799046312,-1628.77231093,0.00021,2]
[341324547,1730799046323,-205.31093854,0.00021135,2]
[341324548,1730799046333,-250.0,0.00021166,2]
[341324549,1730799046342,-177.99,0.00021918,2]
[341324550,1730799046352,-1007.28,0.00021961,2]
[341324551,1730799046362,-5265.99898466,0.00022,2]
[341324696,1730800231886,-157.97,0.00015342,2]
[341324697,1730800231895,-158.06,0.00015342,2]
[341324698,1730800231905,-150.0,0.00016095,2]
[341324699,1730800231914,-250.0,0.00021,2]
[341324700,1730800231924,-7050.29884663,0.00022,2]
[341324701,1730800231935,-2909.42136035,0.00022,2]
[341324702,1730800231945,-1120.25,0.00022,2]
[341324703,1730800231961,-764.1593386,0.00022,2]
[341324704,1730800232115,-30572.81755567,0.00022,2]
[341324705,1730800232126,-690.1828127,0.00022,2]
[341324706,1730800232140,-672.42886243,0.00022,2]
[341324883,1730800233991,844.87384269,0.00021,120]
[341324973,1730800239928,-465.60609202,0.00022,2]
[341324974,1730800240008,-5905.07754447,0.00022,2]
[341324975,1730800240109,-1449.35918265,0.00022,2]
[341324976,1730800240120,-10452.64999999,0.00022,2]
[341324991,1730800242907,-430.24516192,0.00022,2]
[341324992,1730800242997,-255.73338056,0.00022,2]
[341324993,1730800243008,-486.76,0.00022,2]
[341324994,1730800243079,-2755.932984,0.00022,2]
[341325012,1730800245884,-6893.1450078,0.00022,2]
[341325013,1730800245998,-1653.5858112,0.00022,2]
[341325025,1730801169112,150.0,0.000251,60]
[341325082,1730801432193,-156.1,0.00015342,2]
[341325083,1730801432213,-157.07,0.00015342,2]
[341325084,1730801432223,-154.87,0.00015342,2]
[341325085,1730801432232,-150.0,0.00016095,2]
[341325086,1730801432243,-981.96,0.000181,2]
[341325093,1730801432631,-950.04,0.000181,2]
[341325094,1730801432640,-262.78646843,0.000209,2]
[341325095,1730801432649,-250.0,0.00021,2]
[341325096,1730801432658,-21.77353157,0.000217,2]
[341325097,1730801432669,-12038.26016843,0.000217,2]
[341325098,1730801432679,-411.48063059,0.00021908,2]
[341325099,1730801432689,-176.83,0.00021918,2]
[341325100,1730801432699,-11928.82379497,0.0002199,2]
[341325101,1730801432710,-2170.01535873,0.0002199,2]
[341325102,1730801432719,-3705.1171215,0.0002199,2]
[341325103,1730801432727,-11054.9321641,0.0002199,2]
[341325104,1730801432736,-441.73733715,0.00021999,2]
[341325105,1730801432746,-1000.0,0.00021999,2]
[341325106,1730801432755,-3490.65209917,0.00022,2]
[341325107,1730801432764,-1627.46719894,0.00022,2]
[341325108,1730801432773,-200.0,0.00022,2]
[341325109,1730801432782,-2000.0,0.00022,2]
[341325110,1730801432792,-200.0,0.00022,2]
[341325111,1730801432801,-4439.7994161,0.00022005,2]
[341325112,1730801432809,-1758.4637294,0.0002202,2]
[341325113,1730801432818,-1003.0,0.00022035,2]
[341325114,1730801432828,-514.69,0.00022838,2]
[341325115,1730801432837,-767.72,0.00022877,2]
[341325116,1730801432846,-300.0,0.00023,2]
[341325117,1730801432855,-1003.0,0.00023195,2]
[341325118,1730801432864,-150.0,0.00023534,2]
[341325119,1730801432874,-150.0,0.00023561,2]
[341325120,1730801432883,-150.0,0.00023561,2]
[341325121,1730801432892,-502.759,0.00023561,2]
[341325122,1730801432902,-2906.0,0.00023561,2]
[341325123,1730801432911,-813.0,0.00023561,2]
[341325124,1730801432920,-808.0,0.00023561,2]
[341325125,1730801432929,-1178.843,0.00023561,2]
[341325126,1730801432942,-150.0,0.00023561,2]
[341325127,1730801432951,-5043.786,0.00023561,2]
[341325128,1730801432962,-1089.0,0.00023561,2]
[341325129,1730801432972,-514.69,0.00023739,2]
[341325130,1730801432981,-2356.79,0.0002384,2]
[341325131,1730801432990,-510.37,0.00023953,2]
[341325132,1730801433000,-154.72,0.00023971,2]
[341325133,1730801433010,-250.0,0.00024044,2]
[341325134,1730801433019,-250.0,0.00024064,2]
[341325135,1730801433029,-3513.63,0.00024123,2]
[341325136,1730801433039,-200.0,0.00024147,2]
[341325137,1730801433048,-2423.98,0.00024319,2]
[341325138,1730801433058,-566.86917197,0.00024355,2]
[341325139,1730801433067,-1131.0,0.000244,2]
[341325140,1730801433076,-514.69,0.00024641,2]
[341325141,1730801433086,-2423.98,0.00024709,2]
[341325142,1730801433095,-396.04,0.00024795,2]
[341325143,1730801433104,-1675.49211795,0.00024814,2]
[341325146,1730801438298,-3497.47499244,0.00024814,2]
[341325147,1730801438321,-5183.19999995,0.00024814,2]
[341325148,1730801438333,-13543.83288966,0.00024814,2]
[341325149,1730801438342,-1365.96,0.00024823,2]
[341325150,1730801438351,-150.63,0.00024922,2]
[341325151,1730801438359,-500.0,0.00024932,2]
[341325152,1730801438368,-350.0,0.00025,2]
[341325153,1730801438377,-2423.98,0.000251,2]
[341325154,1730801438386,-150.0,0.000251,2]
[341325155,1730801438395,-1472.36634948,0.000251,2]
[341325156,1730801438404,-200.0,0.000251,2]
[341325157,1730801438414,-158.2,0.00025105,30]
[341325158,1730801438422,-767.72,0.00025141,2]
[341325159,1730801438432,-150.0,0.00025192,2]
[341325160,1730801438440,-201.02,0.00025276,2]
[341325161,1730801438453,-2423.98,0.00025491,2]
[341325162,1730801438462,-514.69,0.00025542,2]
[341325163,1730801438471,-2423.98,0.00025881,2]
[341325164,1730801438480,-169.73,0.000259,2]
[341325165,1730801438489,-150.63,0.00025906,2]
[341325166,1730801438659,-703.343904,0.00025939,2]
[341325167,1730801438670,-8094.22,0.0002602,2]
[341325168,1730801438680,-385.35,0.00026208,2]
[341325169,1730801438689,-2423.98,0.00026272,2]
[341325170,1730801438701,-459.95,0.00026401,2]
[341325171,1730801438710,-514.69,0.00026444,2]
[341325172,1730801438719,-150.0,0.00026561,2]
[341325173,1730801438729,-150.0,0.00026561,2]
[341325174,1730801438738,-2906.0,0.00026561,2]
[341325175,1730801438747,-811.0,0.00026561,2]
[341325177,1730801438757,-757.585,0.00026561,2]
[341325179,1730801438766,-2423.98,0.00026663,2]
[341325181,1730801438776,-167.81,0.00026691,2]
[341325183,1730801438786,-150.63,0.0002689,2]
[341325186,1730801438796,-1000.0,0.00026907,2]
[341325188,1730801438805,-400.0,0.00027,2]
[341325190,1730801438814,-229.0,0.00027,2]
[341325192,1730801438823,-152.0,0.00027049,3]
[341325194,1730801438832,-2423.98,0.00027054,2]
[341325196,1730801438842,-25310.54800903,0.00027397,2]
[341325199,1730801438854,-31768.80199097,0.00027397,2]
[341325200,1730801438863,-767.72,0.00027405,2]
[341325202,1730801438872,-156.96,0.00027474,2]
[341325204,1730801438881,-385.35,0.00027518,2]
[341325206,1730801438890,-167.81,0.00027793,2]
[341325208,1730801438899,-150.63,0.00027874,2]
[341325210,1730801438909,-1002.06435171,0.00028,7]
[341325211,1730801438917,-210.0,0.0002826,2]
[341325212,1730801438926,-158.2,0.00028378,30]
[341325213,1730801438935,-152.0,0.00028559,4]
[341325214,1730801438944,-385.35,0.00028829,2]
[341325215,1730801438954,-150.63,0.00028857,2]
[341325216,1730801438963,-210.0,0.0002888,2]
[341325217,1730801438972,-167.81,0.00028894,2]
[341325218,1730801438981,-1731.41294513,0.000289,20]
[341325219,1730801438991,-2272.21261898,0.00029,3]
[341325220,1730801439000,-450.0,0.00029,2]
[341325221,1730801439010,-169.73,0.00029137,2]
[341325222,1730801439019,-200.0,0.000292,10]
[341325223,1730801439028,-500.0,0.000293,10]
[341325224,1730801439037,-155.85,0.0002936,60]
[341325225,1730801439048,-165.63367157,0.00029379,2]
[341325226,1730801439058,-68262.4759,0.0002938,2]
[341325227,1730801439067,-800.0,0.000294,10]
[341325228,1730801439076,-946.8817,0.0002948,2]
[341325229,1730801439085,-100000.0,0.0002948,2]
[341325230,1730801439095,-500.0,0.0002948,2]
[341325231,1730801439104,-5971.0,0.000295,2]
[341325232,1730801439113,-1100.0,0.000295,10]
[341325233,1730801439122,-210.0,0.0002951,2]
[341325234,1730801439131,-348.694,0.0002955,23]
[341325235,1730801439140,-353.118,0.00029561,2]
[341325236,1730801439150,-333.80913546,0.00029588,2]
[341325237,1730801439159,-1400.0,0.000296,10]
[341325238,1730801439168,-767.72,0.00029668,2]
[341325239,1730801439178,-37010.14324801,0.0002968,2]
[341325240,1730801439187,-441.81553099,0.00029688,15]
[341325241,1730801439198,-200.0,0.000297,10]
[341325242,1730801439207,-150.0,0.00029728,2]
[341325243,1730801439216,-150.0,0.00029738,2]
[341325244,1730801439225,-150.0,0.00029747,2]
[341325245,1730801439234,-150.0,0.00029758,2]
[341325246,1730801439246,-213.3921,0.0002978,2]
[341325247,1730801439255,-696.82438173,0.0002978,2]
[341325248,1730801439265,-3763.51932292,0.0002978,2]
[341325249,1730801439274,-320.4763814,0.0002978,2]
[341325250,1730801439283,-569.58480433,0.0002978,2]
[341325251,1730801439294,-150.0,0.00029781,2]
[341325252,1730801439303,-150.0,0.00029781,2]
[341325253,1730801439312,-150.0,0.00029783,2]
[341325254,1730801439324,-150.0,0.00029785,2]
[341325255,1730801439333,-5100.0,0.000298,26]
[341325256,1730801439343,-5050.0,0.000298,21]
[341325257,1730801439353,-150.0,0.000298,2]
[341325258,1730801439361,-398.0,0.000298,14]
[341325259,1730801439371,-200.0,0.000298,10]
[341325260,1730801439379,-196.0,0.000298,14]
[341325261,1730801439388,-152.05071458,0.00029806,2]
[341325262,1730801439398,-150.0,0.00029811,2]
[341325263,1730801439407,-150.0,0.00029819,2]
[341325264,1730801439416,-531.0,0.0002982,5]
[341325265,1730801439425,-1335.570632,0.0002982,10]
[341325266,1730801439435,-150.0,0.00029825,2]
[341325267,1730801439445,-1000.0,0.0002984,10]
[341325268,1730801439455,-150.0,0.00029841,2]
[341325269,1730801439464,-251.15361802,0.00029844,2]
[341325270,1730801439473,-150.0,0.00029853,2]
[341325271,1730801439482,-150.0,0.00029854,2]
[341325272,1730801439491,-1444.6791525,0.0002986,2]
[341325273,1730801439500,-1130.8945756,0.0002986,2]
[341325274,1730801439510,-817.1099988,0.0002986,2]
[341325275,1730801439519,-503.3254219,0.0002986,2]
[341325276,1730801439529,-189.540845,0.0002986,2]
[341325277,1730801439538,-3647.5507289,0.0002986,2]
[341325278,1730801439547,-2855.3020417,0.0002986,2]
[341325279,1730801439556,-2063.0533545,0.0002986,2]
[341325280,1730801439565,-1270.8046672,0.0002986,2]
[341325281,1730801439574,-478.55598,0.0002986,2]
[341325282,1730801439583,-11583.0077469,0.0002986,2]
[341325283,1730801439591,-9067.1763402,0.0002986,2]
[341325284,1730801439601,-6551.3449334,0.0002986,2]
[341325285,1730801439610,-4035.5135266,0.0002986,2]
[341325286,1730801439619,-1519.6821199,0.0002986,2]
[341325287,1730801439628,-1000.0,0.0002986,10]
[341325288,1730801439637,-3043.9669432,0.0002986,2]
[341325289,1730801439647,-2382.8167649,0.0002986,2]
[341325290,1730801439656,-1721.6665866,0.0002986,2]
[341325291,1730801439665,-1060.5164083,0.0002986,2]
[341325292,1730801439674,-399.3662301,0.0002986,2]
[341325293,1730801439683,-9082.2629795,0.0002986,2]
[341325294,1730801439692,-7109.5937948,0.0002986,2]
[341325295,1730801439703,-5136.9246101,0.0002986,2]
[341325296,1730801439713,-3164.2554254,0.0002986,2]
[341325297,1730801439723,-1191.5862408,0.0002986,2]
[341325298,1730801439732,-150.0,0.00029865,2]
[341325299,1730801439741,-285.84570236,0.00029866,2]
[341325300,1730801439751,-159.31611468,0.00029868,2]
[341325301,1730801439760,-150.0,0.00029876,2]
[341325302,1730801439769,-400.0,0.00029879,10]
[341325303,1730801439778,-400.0,0.00029879,10]
[341325304,1730801439791,-400.0,0.00029879,10]
[341325305,1730801439800,-400.0,0.00029879,10]
[341325306,1730801439809,-154.51830487,0.00029879,2]
[341325307,1730801439819,-1000.0,0.00029879,30]
[341325308,1730801439828,-2607029.93585741,0.0002988,2]
[341325309,1730801439840,-643.83747562,0.0002988,2]
[341325313,1730801443296,-530.0,0.0002988,5]
[341325314,1730801443306,-7386.23427601,0.0002988,2]
[341325315,1730801443326,-8258.111208,0.0002988,2]
[341325331,1730801446144,-200.0,0.00027397,7]
[341325332,1730801446155,-6728.54291957,0.0002988,2]
[341325333,1730801446247,-13222.4615136,0.0002988,2]
[341325334,1730801446259,-1170.80118248,0.0002988,2]
[341325335,1730801446414,-20885.7813912,0.0002988,2]
[341325343,1730802330695,150.0,0.000101,2]
[341325344,1730802330717,150.0,0.000101,2]
[341325345,1730802330740,150.0,0.000101,2]
[341325346,1730802330760,150.0,0.000101,2]
[341325347,1730802330781,150.0,0.000101,2]
[341325348,1730802330803,149.05684113,0.000101,2]
[341325350,1730802334676,156.41,0.00015265,2]
[341325352,1730802337670,150.0,9e-05,2]
[341325353,1730802337690,150.0,9e-05,2]
[341325354,1730802337712,150.0,9e-05,2]
[341325355,1730802337732,150.0,9e-05,2]
[341325356,1730802337756,142.3822493,9e-05,2]
[341325357,1730802369174,150.0,0.0001,2]
[341325358,1730802369195,150.0,0.0001,2]
[341325359,1730802369216,150.0,0.0001,2]
[341325360,1730802369236,150.0,0.0001,2]
[341325361,1730802369256,150.0,0.0001,2]
[341325362,1730802369277,150.0,0.0001,2]
[341325363,1730802369297,3.36194874,0.0001,2]
[341325383,1730802490799,-3015.54242512,0.00015,2]
[341325384,1730802493409,-2697.90488958,0.00015,2]
[341325386,1730802500630,-1102.03345946,0.0001439,2]
[341325387,1730802502241,-916.177595,0.0001439,2]
[341325388,1730802515231,150.0,0.000129,2]
[341325389,1730802515261,150.0,0.000129,2]
[341325390,1730802515282,126.22319884,0.000129,2]
[341325391,1730802525003,150.0,0.0001,2]
[341325392,1730802525023,150.0,0.0001,2]
[341325393,1730802525044,150.0,0.0001,2]
[341325394,1730802525063,150.0,0.0001,2]
[341325395,1730802525083,150.0,0.0001,2]
[341325396,1730802525103,150.0,0.0001,2]
[341325397,1730802525123,48.22275962,0.0001,2]
[341325398,1730802526209,-1096.10570435,0.000145,2]
[341325402,1730802526995,-1090.27892886,0.000145,2]
[341325420,1730802628067,-150.0,0.00014355,2]
[341325427,1730802632214,-100.776077,0.00014355,2]
[341325428,1730802632224,-361.15,0.000144,2]
[341325429,1730802632233,-253.56684613,0.00014427,2]
[341325430,1730802632242,-188.00775255,0.000145,2]
[341325431,1730802632474,-55.60761424,0.000145,2]
[341325432,1730802632484,-5399.64523275,0.00015,2]
[341325447,1730802638308,-111713.44896293,0.00015,2]
[341325448,1730802638317,-150.0,0.00015135,2]
[341325449,1730802638326,-156.41,0.00015342,2]
[341325450,1730802638335,-158.85,0.00015342,2]
[341325451,1730802638344,-289.69424823,0.0001599,2]
[341325452,1730802638353,-856.80240465,0.00015999,2]
[341325453,1730802638362,-856.80240465,0.00015999,2]
[341325454,1730802638372,-856.80240465,0.00015999,2]
[341325455,1730802638381,-856.80240465,0.00015999,2]
[341325456,1730802638390,-856.80240465,0.00015999,2]
[341325457,1730802638400,-856.80240465,0.00015999,2]
[341325458,1730802638410,-856.80240465,0.00015999,2]
[341325459,1730802638419,-856.80240465,0.00015999,2]
[341325460,1730802638428,-856.80240465,0.00015999,2]
[341325461,1730802638438,-856.80240465,0.00015999,2]
[341325462,1730802638447,-856.80240465,0.00015999,2]
[341325463,1730802638456,-856.80240465,0.00015999,2]
[341325464,1730802638465,-856.80240465,0.00015999,2]
[341325465,1730802638474,-856.80240465,0.00015999,2]
[341325466,1730802638483,-856.80240465,0.00015999,2]
[341325467,1730802638493,-856.80240465,0.00015999,2]
[341325468,1730802638502,-856.80240465,0.00015999,2]
[341325469,1730802638511,-856.80240465,0.00015999,2]
[341325470,1730802638521,-856.80240465,0.00015999,2]
[341325471,1730802638531,-878.22246475,0.00015999,2]
[341325472,1730802638540,-878.22246475,0.00015999,2]
[341325473,1730802638549,-878.22246475,0.00015999,2]
[341325474,1730802638558,-878.22246475,0.00015999,2]
[341325475,1730802638567,-878.22246475,0.00015999,2]
[341325476,1730802638576,-878.22246475,0.00015999,2]
[341325477,1730802638585,-878.22246475,0.00015999,2]
[341325478,1730802638594,-878.22246475,0.00015999,2]
[341325480,1730802638603,-878.22246475,0.00015999,2]
[341325482,1730802638612,-903.96346803,0.00015999,2]
[341325484,1730802638621,-903.96346803,0.00015999,2]
[341325486,1730802638631,-730693.35266179,0.00016,2]
[341325488,1730802638640,-335.0,0.000195,2]
[341325490,1730802638649,-176.83,0.00021918,2]
[341325492,1730802638659,-6893.1450078,0.00022,2]
[341325494,1730802638671,-7510.85941586,0.00024728,2]
[341325496,1730802638680,-250.0,0.00024823,2]
[341325498,1730802638689,-257.394,0.00024949,2]
[341325499,1730802638699,-630.0,0.00024949,2]
[341325501,1730802638708,-1695.34685745,0.00025,2]
[341325503,1730802638718,-623.26143633,0.00025,2]
[341325505,1730802638727,-165.58,0.00025568,2]
[341325507,1730802638736,-744.43,0.00026395,2]
[341325509,1730802638745,-6307.59432921,0.000264,2]
[341325511,1730802638755,-165.58,0.00026623,2]
[341325513,1730802638764,-202.62372783,0.00027397,30]
[341325515,1730802638774,-156.96,0.00027474,2]
[341325516,1730802638783,-163.51,0.0002756,2]
[341325517,1730802638793,-165.58,0.00027678,2]
[341325518,1730802638803,-3681.17,0.00027945,2]
[341325519,1730802638814,-292.162,0.00027949,2]
[341325520,1730802638824,-832.68,0.00027998,2]
[341325521,1730802638833,-23900.0,0.00028079,2]
[341325522,1730802638843,-154.72,0.0002814,2]
[341325523,1730802638853,-169.73,0.0002814,2]
[341325524,1730802638862,-167.02,0.00028184,2]
[341325525,1730802638871,-154.14,0.00028192,2]
[341325526,1730802638880,-158.2,0.00028208,30]
[341325527,1730802638891,-383.29,0.0002821,2]
[341325528,1730802638900,-200.0,0.00028337,7]
[341325529,1730802638910,-1000.0,0.0002848,2]
[341325530,1730802638919,-744.43,0.00028659,2]
[341325531,1730802638928,-165.58,0.00028733,2]
[341325532,1730802638936,-151.22,0.00028948,2]
[341325533,1730802638946,-151.22,0.00028977,2]
[341325534,1730802638956,-202.62372783,0.00029,30]
[341325535,1730802638965,-202.62372783,0.00029,30]
[341325536,1730802638974,-151.22,0.00029006,2]
[341325537,1730802638983,-151.22,0.00029035,2]
[341325538,1730802638992,-166.59,0.00029045,2]
[341325539,1730802639001,-156.765,0.0002906,2]
[341325540,1730802639011,-151.22,0.00029064,2]
[341325541,1730802639019,-151.22,0.00029093,2]
[341325542,1730802639028,-151.22,0.00029122,2]
[341325543,1730802639038,-151.22,0.00029151,2]
[341325544,1730802639047,-151.22,0.0002918,2]
[341325545,1730802639056,-151.22,0.00029209,2]
[341325546,1730802639065,-151.22,0.00029237,2]
[341325547,1730802639074,-1075.77367427,0.00029282,2]
[341325548,1730802639083,-1875.81010074,0.000295,2]
[341325549,1730802639093,-411.48063058,0.00029556,2]
[341325550,1730802639102,-422.00862616,0.0002959,2]
[341325551,1730802639111,-278.955,0.000296,23]
[341325552,1730802639121,-1349.45911548,0.000296,2]
[341325553,1730802639130,-154.14,0.00029602,2]
[341325554,1730802639139,-411.48063059,0.00029634,2]
[341325555,1730802639148,-150.0,0.00029713,2]
[341325556,1730802639158,-150.0,0.00029725,2]
[341325557,1730802639168,-150.0,0.00029734,2]
[341325558,1730802639178,-1500.0,0.00029739,2]
[341325559,1730802639187,-1500.0,0.00029746,2]
[341325560,1730802639196,-150.0,0.00029748,2]
[341325561,1730802639206,-150.0,0.00029749,2]
[341325562,1730802639215,-150.0,0.00029756,2]
[341325563,1730802639224,-150.0,0.00029758,2]
[341325564,1730802639234,-150.0,0.00029768,2]
[341325565,1730802639243,-150.0,0.00029769,2]
[341325566,1730802639252,-150.0,0.00029777,2]
[341325567,1730802639262,-6671.7666,0.0002978,2]
[341325568,1730802639271,-500.0,0.0002978,2]
[341325569,1730802639280,-700.0,0.0002978,2]
[341325570,1730802639290,-636.0917,0.0002978,2]
[341325571,1730802639300,-692.16892524,0.00029786,2]
[341325572,1730802639309,-165.58,0.00029788,2]
[341325573,1730802639319,-150.0,0.00029788,2]
[341325574,1730802639328,-1500.0,0.00029797,2]
[341325575,1730802639533,-398.0,0.000298,14]
[341325576,1730802639544,-1500.0,0.00029811,2]
[341325577,1730802639553,-1500.0,0.00029811,2]
[341325578,1730802639563,-1500.0,0.00029811,2]
[341325579,1730802639572,-150.0,0.00029813,2]
[341325580,1730802639581,-150.0,0.00029821,2]
[341325581,1730802639591,-150.0,0.00029836,2]
[341325582,1730802639601,-1500.0,0.00029838,2]
[341325583,1730802639610,-150.0,0.00029844,2]
[341325584,1730802639619,-1500.0,0.00029859,2]
[341325585,1730802639628,-150.0,0.00029862,2]
[341325586,1730802639638,-379.7232029,0.00029869,2]
[341325587,1730802639647,-27378.0,0.00029869,2]
[341325588,1730802639656,-431.885,0.00029873,5]
[341325589,1730802639666,-500.0,0.00029873,5]
[341325590,1730802639676,-150.0,0.00029875,2]
[341325591,1730802639686,-150.0,0.00029878,2]
[341325592,1730802639695,-400.0,0.00029879,10]
[341325593,1730802639705,-400.0,0.00029879,10]
[341325594,1730802639714,-400.0,0.00029879,10]
[341325595,1730802639724,-400.0,0.00029879,10]
[341325596,1730802639733,-172.93768327,0.00029879,2]
[341325597,1730802639742,-1000.0,0.00029879,30]
[341325598,1730802639751,-476.0,0.0002988,5]
[341325599,1730802639761,-99054.4635705,0.0002988,2]
[341325602,1730802640242,-1954.9999999,0.0002988,2]
[341325603,1730802640603,-343.69770055,0.0002988,2]
[341325604,1730802640654,-825.260436,0.0002988,2]
[341325610,1730802643371,-319916.39427854,0.0002988,2]
[341325611,1730802643457,-2062.258488,0.0002988,2]
[341325638,1730803503862,156.1,0.00015342,2]
[341325706,1730803832437,-150.0,0.00018107,2]
[341325708,1730803832447,-250.0,0.00021,2]
[341325709,1730803832458,-95.88923231,0.000229,2]
[341325710,1730803832474,-1055.53277408,0.000229,2]
[341325711,1730803832483,-300.0,0.00023,2]
[341325712,1730803832493,-57.89505348,0.00025,2]
[341325713,1730803832506,-292.10494652,0.00025,2]
[341325714,1730803832515,-669.98,0.00025872,2]
[341325715,1730803832524,-165.381,0.00026337,2]
[341325716,1730803832534,-400.0,0.00027,2]
[341325717,1730803832543,-250.0,0.00027118,2]
[341325718,1730803832552,-188.09712939,0.00027597,2]
[341325719,1730803832567,-268.10751173,0.00027597,2]
[341325720,1730803832578,-571.51368121,0.00027597,2]
[341325721,1730803832642,-665.18959959,0.00027597,2]
[341325722,1730803832654,-18569.43275303,0.00027597,2]
[341325723,1730803832666,-465.78806071,0.00027597,2]
[341325724,1730803832682,-1283.39985363,0.00027597,2]
[341325725,1730803832792,-1888.47141071,0.00027597,2]
[341325726,1730803832802,-152.0,0.00027653,3]
[341325727,1730803832811,-154.14,0.00027699,2]
[341325728,1730803832820,-158.2,0.00027768,30]
[341325729,1730803832830,-200.0,0.00027899,7]
[341325730,1730803832839,-416.34,0.0002799,2]
[341325731,1730803832848,-154.72,0.0002811,2]
[341325732,1730803832858,-556.02508355,0.00028136,2]
[341325733,1730803832869,-113.95491645,0.00028136,2]
[341325734,1730803832878,-319.4,0.00028144,2]
[341325735,1730803832888,-1000.0,0.00028169,2]
[341325736,1730803832898,-450.0,0.00029,2]
[341325738,1730803832908,-378.39508355,0.0002968,2]
[341325739,1730803832919,-126.49881645,0.0002968,2]
[341325740,1730803832928,-595.66691702,0.0002968,2]
[341325747,1730803838497,-538.33314605,0.0002968,2]
[341325748,1730803838724,-1365.99993693,0.0002968,2]
[341325749,1730803838734,-397.63397796,0.0002968,15]
[341325750,1730803838743,-150.0,0.0002971,2]
[341325751,1730803838752,-230.0,0.0002971,2]
[341325752,1730803838762,-223.164,0.00029713,23]
[341325753,1730803838771,-3374.622,0.00029748,2]
[341325754,1730803838781,-152.0,0.00029767,4]
[341325755,1730803838791,-26741.31132754,0.0002978,2]
[341325756,1730803838806,-1505.06,0.0002978,2]
[341325763,1730803840371,-389.67152174,0.0002978,2]
[341325764,1730803840405,-256.23847826,0.0002978,2]
[341325765,1730803840423,-642.03987634,0.0002978,2]
[341325766,1730803840450,-6841.18,0.0002978,2]
[341325767,1730803840480,-1435.36289612,0.0002978,2]
[341325768,1730803840493,-3413.63710388,0.0002978,2]
[341325769,1730803840537,-15095.24538634,0.0002978,2]
[341325770,1730803840632,-1368.64,0.0002978,2]
[341325779,1730803843451,-21256.00533705,0.0002978,2]
[341325780,1730803843568,-58866.47217273,0.0002978,2]
[341325781,1730803843578,-1000.0,0.0002978,2]